bitfinex/quotes_SOLUSD_20241231
["timestamp","ask_amount","ask_price","bid_price","bid_amount"]
[1735674570339,8.18915743,194.25,194.23,0.16917966]
[1735674570515,20.0,194.26,194.23,0.16917966]
[1735674570716,8.18915743,194.24,194.23,0.16917966]
[1735674571312,8.18915743,194.25,194.23,0.16917966]
[1735674571941,12.8679,194.29,194.23,0.16917966]
[1735674572240,8.18915743,194.25,194.23,0.16917966]
[1735674572434,8.18915743,194.26,194.23,0.16917966]
[1735674573245,8.18915743,194.25,194.23,0.16917966]
[1735674573547,8.18915743,194.26,194.23,0.16917966]
[1735674575029,8.18915743,194.27,194.23,0.16917966]
[1735674576945,8.18915743,194.26,194.23,0.16917966]
[1735674577122,8.18915743,194.25,194.23,0.16917966]
[1735674577754,8.18915743,194.24,194.23,0.16917966]
[1735674589177,8.18915743,194.24,194.13,1.5641]
[1735674589474,8.18915743,194.16,194.13,1.5641]
[1735674589668,8.18915743,194.17,194.13,1.5641]
[1735674590182,8.18915743,194.18,194.13,1.5641]
[1735674592178,8.18915743,194.19,194.13,1.5641]
[1735674592475,8.18915743,194.18,194.13,1.5641]
[1735674594853,8.18915743,194.17,194.13,1.5641]
[1735674595054,8.18915743,194.16,194.12,20.0]
[1735674595558,8.18915743,194.17,194.12,19.5]
[1735674596691,8.18915743,194.16,194.08,20.8475]
[1735674596977,12.8722,194.22,194.08,20.8475]
[1735674596978,8.18915743,194.13,194.08,1.6144]
[1735674597173,8.18915743,194.12,194.08,1.6144]
[1735674597557,8.18915743,194.12,194.09,1.8236221]
[1735674597970,8.18915743,194.13,194.09,1.8236221]
[1735674598174,45.63052972,194.2,194.03,22.47205376]
[1735674598175,8.18915743,194.11,194.06,23.776884]
[1735674598586,8.18915743,194.11,194.05,23.776884]
[1735674599274,8.18915743,194.11,194.04,8.18915743]
[1735674599586,8.18915743,194.1,194.04,23.776884]
[1735674600278,8.18915743,194.1,194.05,1.82264923]
[1735674600464,8.18915743,194.09,194.05,1.82264923]
[1735674600670,8.18915743,194.1,194.05,1.82264923]
[1735674601182,8.18915743,194.09,194.03,8.004]
[1735674601585,8.18915743,194.11,194.04,31.96604143]
[1735674602470,8.18915743,194.13,194.06,8.18915743]
[1735674603257,8.18915743,194.12,194.05,8.18915743]
[1735674603670,8.18915743,194.13,194.06,8.18915743]
[1735674603869,12.8723,194.22,194.11,23.776884]
[1735674604075,8.18915743,194.18,194.11,31.96604143]
[1735674605555,8.18915743,194.17,194.11,23.776884]
[1735674606286,8.18915743,194.16,194.11,23.776884]
[1735674606790,8.18915743,194.14,194.1,1.6518]
[1735674606981,8.18915743,194.15,194.1,1.6518]
[1735674607880,32.75662972,194.2,194.07,8.18915743]
[1735674608082,8.18915743,194.15,194.07,8.18915743]
[1735674608389,8.18915743,194.14,194.07,8.18915743]
[1735674609565,8.18915743,194.15,194.07,8.18915743]
[1735674610092,8.18915743,194.16,194.09,20.0]
[1735674610600,8.18915743,194.15,194.1,23.776884]
[1735674610918,8.18915743,194.17,194.1,31.96604143]
[1735674612387,8.18915743,194.15,194.09,20.0]
[1735674612893,8.18915743,194.15,194.1,23.776884]
[1735674613796,8.18915743,194.14,194.1,23.776884]
[1735674614268,8.18915743,194.16,194.1,23.776884]
[1735674615693,8.18915743,194.18,194.1,31.96604143]
[1735674615884,8.18915743,194.18,194.1,38.17884143]
[1735674616082,8.18915743,194.16,194.1,29.989684]
[1735674618382,1.5522,194.23,194.1,29.989684]
[1735674618383,8.18915743,194.15,194.1,29.989684]
[1735674618993,8.18915743,194.16,194.1,29.989684]
[1735674620294,1.5522,194.23,194.12,23.776884]
[1735674620472,8.18915743,194.21,194.14,8.18915743]
[1735674622600,8.18915743,194.2,194.14,8.18915743]
[1735674623097,8.18915743,194.18,194.11,22.66855743]
[1735674623297,8.18915743,194.2,194.13,8.18915743]
[1735674623592,8.18915743,194.19,194.12,31.96604143]
[1735674623796,8.18915743,194.18,194.12,23.776884]
[1735674624975,8.18915743,194.19,194.12,31.96604143]
[1735674625708,8.18915743,194.2,194.13,8.18915743]
[1735674626502,8.18915743,194.19,194.12,31.96604143]
[1735674626882,14.462,194.27,194.15,8.18915743]
[1735674627105,8.18915743,194.22,194.15,8.18915743]
[1735674627406,20.0,194.24,194.15,8.18915743]
[1735674627599,8.18915743,194.22,194.15,8.18915743]
[1735674629502,14.462,194.27,194.18,23.776884]
[1735674629503,1.5932,194.27,194.18,23.776884]
[1735674629709,8.18915743,194.24,194.18,23.776884]
[1735674629878,8.18915743,194.24,194.17,28.18915743]
[1735674630084,8.18915743,194.22,194.15,28.18915743]
[1735674630287,8.18915743,194.22,194.16,23.776884]
[1735674630490,8.18915743,194.23,194.16,31.96604143]
[1735674631611,8.18915743,194.22,194.16,23.776884]
[1735674632008,8.18915743,194.24,194.18,23.776884]
[1735674633317,8.18915743,194.25,194.18,33.52214143]
[1735674634107,8.18915743,194.25,194.22,0.16917966]
[1735674634895,8.18915743,194.23,194.22,0.16917966]
[1735674637423,20.0,194.2,194.08,54.76719067]
[1735674637719,20.0,194.2,194.08,33.69693324]
[1735674637720,8.18915743,194.12,194.08,33.69693324]
[1735674637930,8.18915743,194.12,194.08,1.5561]
[1735674639528,8.18915743,194.13,194.08,1.5561]
[1735674639833,8.18915743,194.12,194.07,6.3873]
[1735674640124,8.18915743,194.11,194.04,9.74525743]
[1735674640422,8.18915743,194.09,194.04,1.5561]
[1735674640724,8.18915743,194.08,194.05,1.82105688]
[1735674640909,8.18915743,194.09,194.02,14.57645743]
[1735674641599,8.18915743,194.09,194.03,1.82174595]
[1735674641795,8.18915743,194.1,194.03,10.01090338]
[1735674642310,8.18915743,194.1,194.03,8.18915743]
[1735674642506,1.5715,194.16,194.03,8.18915743]
[1735674642710,8.18915743,194.1,194.03,8.18915743]
[1735674642907,20.0,194.14,194.04,31.96604143]
[1735674643114,8.18915743,194.12,194.05,8.18915743]
[1735674643930,8.18915743,194.11,194.04,31.96604143]
[1735674644429,8.18915743,194.11,194.05,1.82057707]
[1735674644623,8.18915743,194.1,194.05,1.82057707]
[1735674644833,8.18915743,194.11,194.05,1.82057707]
[1735674645335,8.18915743,194.11,194.05,23.776884]
[1735674645910,1.5715,194.16,194.05,31.96604143]
[1735674646110,8.18915743,194.13,194.05,31.96604143]
[1735674646744,8.18915743,194.13,194.07,23.776884]
[1735674648327,8.18915743,194.13,194.06,8.18915743]
[1735674648525,8.18915743,194.15,194.08,8.18915743]
[1735674649032,8.18915743,194.16,194.09,8.18915743]
[1735674649228,8.18915743,194.17,194.1,8.18915743]
[1735674650231,8.18915743,194.18,194.11,31.96604143]
[1735674651025,8.18915743,194.17,194.11,23.776884]
[1735674652533,8.18915743,194.16,194.09,8.18915743]
[1735674652828,8.18915743,194.14,194.08,14.5305]
[1735674653012,8.18915743,194.14,194.09,23.776884]
[1735674654828,8.18915743,194.15,194.09,23.776884]
[1735674656133,8.18915743,194.15,194.08,9.83875743]
[1735674656835,8.18915743,194.16,194.09,23.776884]
[1735674657041,8.18915743,194.14,194.08,1.6496]
[1735674657734,8.18915743,194.15,194.08,9.83875743]
[1735674658516,8.18915743,194.16,194.09,8.18915743]
[1735674660035,8.18915743,194.15,194.08,9.83875743]
[1735674661455,8.18915743,194.17,194.1,8.18915743]
[1735674662939,8.18915743,194.16,194.09,8.18915743]
[1735674663344,8.18915743,194.17,194.1,8.18915743]
[1735674668728,8.18915743,194.16,194.1,23.776884]
[1735674669647,8.18915743,194.15,194.08,1.6496]
[1735674669843,8.18915743,194.14,194.08,1.6496]
[1735674672852,8.18915743,194.15,194.08,9.83875743]
[1735674673755,8.18915743,194.14,194.08,1.6496]
[1735674674546,12.8746,194.18,194.08,9.83875743]
[1735674674748,20.0,194.18,194.12,8.18915743]
[1735674674954,28.18915743,194.18,194.11,8.18915743]
[1735674675336,8.18915743,194.17,194.1,8.18915743]
[1735674676836,8.18915743,194.16,194.08,14.5305]
[1735674677150,8.18915743,194.14,194.08,1.6496]
[1735674677350,8.18915743,194.15,194.08,1.6496]
[1735674677551,8.18915743,194.15,194.09,8.18915743]
[1735674677759,8.18915743,194.14,194.08,1.6496]
[1735674682771,8.18915743,194.15,194.08,1.6496]
[1735674683146,8.18915743,194.15,194.09,1.82610586]
[1735674683763,8.18915743,194.15,194.08,1.6496]
[1735674684777,1.5451,194.21,194.09,31.96604143]
[1735674684941,13.95727443,194.22,194.09,31.96604143]
[1735674684942,12.8701,194.25,194.14,8.18915743]
[1735674685137,1.6174,194.26,194.15,8.18915743]
[1735674685138,8.18915743,194.22,194.15,8.18915743]
[1735674685743,8.18915743,194.21,194.15,23.776884]
[1735674687741,8.18915743,194.21,194.14,8.18915743]
[1735674687742,1.6174,194.26,194.16,8.18915743]
[1735674687941,8.18915743,194.24,194.17,31.96604143]
[1735674688442,8.18915743,194.23,194.16,9.69815743]
[1735674688872,8.18915743,194.23,194.17,23.776884]
[1735674689171,8.18915743,194.24,194.17,31.96604143]
[1735674689766,8.18915743,194.25,194.18,8.18915743]
[1735674689962,7.66097443,194.28,194.2,23.776884]
[1735674690170,1.6234,194.3,194.22,23.776884]
[1735674690354,8.18915743,194.3,194.23,8.18915743]
[1735674690662,8.18915743,194.31,194.24,8.18915743]
[1735674690866,8.18915743,194.3,194.24,23.776884]
[1735674691647,8.18915743,194.3,194.23,8.18915743]
[1735674692466,8.18915743,194.29,194.22,8.18915743]
[1735674692673,8.18915743,194.29,194.21,31.96604143]
[1735674692971,8.18915743,194.29,194.23,23.776884]
[1735674693674,8.18915743,194.3,194.23,8.18915743]
[1735674697374,8.18915743,194.31,194.23,8.18915743]
[1735674699954,8.18915743,194.3,194.23,8.18915743]
[1735674700154,8.18915743,194.28,194.21,8.18915743]
[1735674701574,8.18915743,194.28,194.22,23.776884]
[1735674702173,8.18915743,194.28,194.21,8.18915743]
[1735674702381,8.18915743,194.27,194.2,28.18915743]
[1735674703078,8.18915743,194.27,194.21,23.776884]
[1735674703255,8.18915743,194.28,194.21,31.96604143]
[1735674703979,8.18915743,194.28,194.22,8.18915743]
[1735674706383,8.18915743,194.29,194.22,8.18915743]
[1735674706567,8.18915743,194.29,194.23,8.18915743]
[1735674708684,8.18915743,194.29,194.24,23.776884]
[1735674708861,8.18915743,194.29,194.23,8.18915743]
[1735674709597,8.18915743,194.3,194.23,8.18915743]
[1735674711783,8.18915743,194.31,194.24,8.18915743]
[1735674715473,8.18915743,194.31,194.23,31.96604143]
[1735674716489,8.18915743,194.31,194.24,8.18915743]
[1735674716711,8.18915743,194.32,194.25,8.18915743]
[1735674717795,8.18915743,194.32,194.26,23.776884]
[1735674718396,8.18915743,194.33,194.26,8.18915743]
[1735674719676,8.18915743,194.31,194.25,23.776884]
[1735674722387,8.18915743,194.3,194.23,8.18915743]
[1735674722576,8.18915743,194.27,194.15,25.7532]
[1735674722770,8.18915743,194.28,194.21,31.96604143]
[1735674724986,8.18915743,194.29,194.22,8.18915743]
[1735674726801,8.18915743,194.27,194.21,8.18915743]
[1735674727394,8.18915743,194.28,194.21,8.18915743]
[1735674728199,8.18915743,194.27,194.21,8.18915743]
[1735674728502,8.18915743,194.28,194.21,8.18915743]
[1735674728998,8.18915743,194.29,194.22,8.18915743]
[1735674729211,8.18915743,194.28,194.22,23.776884]
[1735674730303,8.18915743,194.29,194.22,8.18915743]
[1735674731195,7.66097443,194.34,194.25,8.18915743]
[1735674731501,8.18915743,194.32,194.25,8.18915743]
[1735674732408,1.6234,194.35,194.28,8.18915743]
[1735674732615,9.81255743,194.35,194.28,8.18915743]
[1735674733201,8.18915743,194.34,194.28,23.776884]
[1735674733399,1.6234,194.35,194.28,23.776884]
[1735674733904,8.18915743,194.34,194.28,23.776884]
[1735674734099,1.6234,194.35,194.28,23.776884]
[1735674734299,9.81255743,194.35,194.28,8.18915743]
[1735674734690,8.18915743,194.34,194.28,23.776884]
[1735674735907,9.81255743,194.35,194.28,8.18915743]
[1735674737108,8.18915743,194.35,194.28,8.18915743]
[1735674737904,8.18915743,194.36,194.3,23.776884]
[1735674738206,8.18915743,194.37,194.3,23.776884]
[1735674739097,8.18915743,194.37,194.3,31.96604143]
[1735674739682,28.18915743,194.38,194.32,23.776884]
[1735674742013,28.18915743,194.38,194.3,31.96604143]
[1735674743315,20.0,194.38,194.3,31.96604143]
[1735674743611,8.18915743,194.37,194.3,31.96604143]
[1735674743791,8.18915743,194.36,194.29,8.18915743]
[1735674743989,8.18915743,194.35,194.28,8.18915743]
[1735674744191,8.18915743,194.34,194.27,8.18915743]
[1735674744516,8.18915743,194.34,194.28,23.776884]
[1735674745615,20.0,194.37,194.28,23.776884]
[1735674745829,8.18915743,194.34,194.28,23.776884]
[1735674747496,8.18915743,194.33,194.27,23.776884]
[1735674747825,8.18915743,194.32,194.25,8.18915743]
[1735674748010,8.18915743,194.31,194.24,9.79715743]
[1735674748317,8.18915743,194.3,194.25,23.776884]
[1735674749018,8.18915743,194.29,194.22,8.18915743]
[1735674749390,6.2354,194.34,194.22,8.18915743]
[1735674749631,8.18915743,194.28,194.22,8.18915743]
[1735674750197,8.18915743,194.29,194.22,8.18915743]
[1735674750422,8.18915743,194.3,194.23,31.96604143]
[1735674750604,8.18915743,194.3,194.24,8.18915743]
[1735674751212,8.18915743,194.31,194.24,8.18915743]
[1735674751422,8.18915743,194.3,194.24,8.18915743]
[1735674751736,8.18915743,194.33,194.26,8.18915743]
[1735674751907,8.18915743,194.33,194.27,8.18915743]
[1735674753138,8.18915743,194.34,194.28,23.776884]
[1735674753925,8.18915743,194.34,194.28,8.18915743]
[1735674754231,1.6122,194.37,194.28,8.18915743]
[1735674754232,8.18915743,194.35,194.28,8.18915743]
[1735674754540,8.18915743,194.36,194.29,8.18915743]
[1735674754743,8.18915743,194.36,194.3,31.96604143]
[1735674754910,8.18915743,194.37,194.3,31.96604143]
[1735674756223,8.18915743,194.37,194.31,8.18915743]
[1735674756632,8.18915743,194.37,194.3,8.18915743]
[1735674756862,8.18915743,194.38,194.31,8.18915743]
[1735674757132,8.18915743,194.38,194.32,23.776884]
[1735674757439,1.5923,194.42,194.32,23.776884]
[1735674757643,8.18915743,194.39,194.32,8.18915743]
[1735674759845,8.18915743,194.38,194.32,23.776884]
[1735674760709,8.18915743,194.38,194.31,8.18915743]
[1735674760913,8.18915743,194.38,194.32,23.776884]
[1735674763951,20.0,194.4,194.32,23.776884]
[1735674764115,8.18915743,194.38,194.32,23.776884]
[1735674768923,8.18915743,194.37,194.29,8.18915743]
[1735674769119,8.18915743,194.37,194.3,31.96604143]
[1735674769538,8.18915743,194.38,194.31,8.18915743]
[1735674776260,8.18915743,194.38,194.32,23.776884]
[1735674776458,8.18915743,194.39,194.32,31.96604143]
[1735674778567,8.18915743,194.39,194.33,1.82100768]
[1735674779469,8.18915743,194.38,194.32,23.776884]
[1735674780372,8.18915743,194.39,194.32,23.776884]
[1735674780669,8.18915743,194.38,194.33,1.82101563]
[1735674780854,8.18915743,194.37,194.33,1.82101563]
[1735674781056,8.18915743,194.37,194.31,23.776884]
[1735674781745,8.18915743,194.37,194.32,1.82116191]
[1735674782575,8.18915743,194.38,194.33,1.82116191]
[1735674783473,8.18915743,194.38,194.31,31.96604143]
[1735674784178,8.18915743,194.38,194.32,1.82087225]
[1735674784351,8.18915743,194.41,194.34,8.18915743]
[1735674784869,8.18915743,194.42,194.35,23.776884]
[1735674785050,1.5118,194.47,194.36,8.18915743]
[1735674785051,8.18915743,194.43,194.36,8.18915743]
[1735674785477,8.18915743,194.42,194.35,31.96604143]
[1735674786479,8.18915743,194.4,194.34,1.579]
[1735674786781,8.18915743,194.4,194.34,23.776884]
[1735674786960,8.18915743,194.4,194.33,8.18915743]
[1735674787276,8.18915743,194.39,194.33,23.776884]
[1735674787679,8.18915743,194.39,194.34,1.81942282]
[1735674787864,8.18915743,194.38,194.34,1.81942282]
[1735674788364,8.18915743,194.38,194.31,10.00858025]
[1735674788680,8.18915743,194.39,194.32,8.18915743]
[1735674788977,8.18915743,194.39,194.32,10.00858025]
[1735674789283,8.18915743,194.4,194.33,31.96604143]
[1735674789454,8.18915743,194.41,194.34,31.96604143]
[1735674790676,19.3674,194.47,194.32,8.18915743]
[1735674790677,8.18915743,194.39,194.32,8.18915743]
[1735674790888,8.18915743,194.4,194.32,8.18915743]
[1735674791385,8.18915743,194.4,194.3,12.8667]
[1735674791386,8.18915743,194.4,194.33,8.18915743]
[1735674791684,8.18915743,194.41,194.34,8.18915743]
[1735674792563,8.18915743,194.42,194.35,8.18915743]
[1735674793756,8.18915743,194.41,194.34,8.18915743]
[1735674794170,8.18915743,194.41,194.35,1.81876843]
[1735674794768,8.18915743,194.41,194.34,8.18915743]
[1735674795495,8.18915743,194.4,194.32,12.8649]
[1735674795697,8.18915743,194.39,194.32,21.05405743]
[1735674796196,8.18915743,194.39,194.33,1.81960425]
[1735674796385,8.18915743,194.39,194.32,21.05405743]
[1735674796555,8.18915743,194.4,194.33,8.18915743]
[1735674796759,8.18915743,194.41,194.34,10.00956373]
[1735674797084,8.18915743,194.4,194.34,1.8204063]
[1735674797403,8.18915743,194.39,194.32,8.18915743]
[1735674797565,8.18915743,194.39,194.31,8.18915743]
[1735674797962,8.18915743,194.38,194.3,8.18915743]
[1735674798284,8.18915743,194.37,194.31,1.82130177]
[1735674798972,8.18915743,194.38,194.31,10.0104592]
[1735674799180,8.18915743,194.38,194.31,8.18915743]
[1735674799862,8.18915743,194.37,194.3,8.18915743]
[1735674800070,8.18915743,194.36,194.29,9.76815743]
[1735674800269,8.18915743,194.35,194.29,1.579]
[1735674800495,8.18915743,194.34,194.27,8.18915743]
[1735674800786,8.18915743,194.35,194.3,1.82202397]
[1735674801280,8.18915743,194.35,194.31,1.82202397]
[1735674801581,8.18915743,194.36,194.31,1.82202397]
[1735674801783,8.18915743,194.38,194.32,8.18915743]
[1735674801985,8.18915743,194.38,194.31,10.0111814]
[1735674802174,8.18915743,194.38,194.31,8.18915743]
[1735674803293,8.18915743,194.35,194.29,8.18915743]
[1735674803991,8.18915743,194.36,194.29,8.18915743]
[1735674804289,8.18915743,194.37,194.3,10.01082647]
[1735674804795,8.18915743,194.36,194.31,1.82166904]
[1735674805283,8.18915743,194.36,194.29,8.18915743]
[1735674805991,8.18915743,194.36,194.3,1.821594]
[1735674806590,8.18915743,194.36,194.31,1.821594]
[1735674807261,8.18915743,194.36,194.3,8.18915743]
[1735674807675,8.18915743,194.36,194.27,20.98937728]
[1735674807873,8.18915743,194.36,194.28,23.776884]
[1735674808091,8.18915743,194.37,194.3,8.18915743]
[1735674808470,8.18915743,194.37,194.31,1.82159035]
[1735674809090,8.18915743,194.36,194.31,1.82159035]
[1735674809302,8.18915743,194.36,194.3,8.18915743]
[1735674809797,8.18915743,194.36,194.29,8.18915743]
[1735674809984,8.18915743,194.35,194.28,8.18915743]
[1735674810401,8.18915743,194.34,194.27,8.12117728]
[1735674810580,8.18915743,194.32,194.29,1.82161233]
[1735674811071,8.18915743,194.32,194.26,8.12117728]
[1735674811478,8.18915743,194.32,194.25,8.18915743]
[1735674811674,8.18915743,194.32,194.27,1.82148739]
[1735674812272,8.18915743,194.32,194.26,8.18915743]
[1735674812876,8.18915743,194.32,194.25,8.18915743]
[1735674813099,8.18915743,194.31,194.24,17.87483471]
[1735674813305,8.18915743,194.3,194.24,9.68567728]
[1735674813472,8.18915743,194.3,194.24,8.12117728]
[1735674813678,8.18915743,194.3,194.23,16.31033471]
[1735674813890,8.18915743,194.3,194.25,1.8209727]
[1735674814390,8.18915743,194.3,194.24,8.18915743]
[1735674815091,8.18915743,194.29,194.23,8.18915743]
[1735674815596,8.18915743,194.29,194.24,1.82027177]
[1735674816091,8.18915743,194.29,194.23,8.18915743]
[1735674816291,8.18915743,194.3,194.23,8.18915743]
[1735674816675,23.776884,194.35,194.23,8.18915743]
[1735674816676,8.18915743,194.29,194.23,8.18915743]
[1735674817194,8.18915743,194.3,194.23,8.18915743]
[1735674817994,23.776884,194.35,194.23,8.18915743]
[1735674817995,8.18915743,194.29,194.23,8.18915743]
[1735674818183,8.18915743,194.27,194.21,8.18915743]
[1735674818380,8.18915743,194.28,194.21,8.18915743]
[1735674820006,8.18915743,194.26,194.19,8.18915743]
[1735674820594,8.18915743,194.26,194.2,1.81691547]
[1735674821297,8.18915743,194.26,194.2,10.0060729]
[1735674821496,8.18915743,194.26,194.2,8.18915743]
[1735674822992,8.18915743,194.28,194.21,8.18915743]
[1735674824006,8.18915743,194.28,194.22,8.18915743]
[1735674824917,8.18915743,194.3,194.23,8.18915743]
[1735674825511,8.18915743,194.29,194.23,8.18915743]
[1735674826520,8.18915743,194.29,194.22,8.18915743]
[1735674826820,8.18915743,194.27,194.2,20.0]
[1735674826989,8.18915743,194.27,194.2,28.18915743]
[1735674828689,8.18915743,194.27,194.2,8.18915743]
[1735674828891,8.18915743,194.26,194.19,28.18915743]
[1735674829801,8.18915743,194.25,194.18,8.18915743]
[1735674830620,38.88022972,194.3,194.16,28.18915743]
[1735674830621,8.18915743,194.23,194.16,28.18915743]
[1735674831320,8.18915743,194.21,194.14,8.18915743]
[1735674832124,8.18915743,194.22,194.15,8.18915743]
[1735674834027,8.18915743,194.21,194.14,8.18915743]
[1735674834194,8.18915743,194.2,194.13,8.18915743]
[1735674834512,8.18915743,194.2,194.13,20.0]
[1735674834716,6.1236,194.23,194.12,8.18915743]
[1735674834717,8.18915743,194.19,194.12,8.18915743]
[1735674835019,8.18915743,194.18,194.11,8.18915743]
[1735674835222,8.18915743,194.18,194.09,1.6623]
[1735674835398,8.18915743,194.18,194.11,8.18915743]
[1735674836289,9.78425743,194.19,194.12,8.18915743]
[1735674837819,8.18915743,194.18,194.11,8.18915743]
[1735674840598,8.18915743,194.16,194.09,8.18915743]
[1735674840795,1.5951,194.19,194.07,8.18915743]
[1735674840796,8.18915743,194.13,194.07,8.18915743]
[1735674841024,8.18915743,194.12,194.05,8.18915743]
[1735674841204,8.18915743,194.13,194.06,8.18915743]
[1735674844428,8.18915743,194.14,194.07,8.18915743]
[1735674844596,8.18915743,194.13,194.06,8.18915743]
[1735674847020,8.18915743,194.12,194.05,8.18915743]
[1735674847206,8.18915743,194.1,194.03,8.18915743]
[1735674848513,8.18915743,194.08,194.01,8.18915743]
[1735674849716,8.18915743,194.06,193.99,8.18915743]
[1735674850601,8.18915743,194.06,194.0,8.18915743]
[1735674851016,8.18915743,194.08,194.01,8.18915743]
[1735674851527,23.776884,194.11,194.0,8.18915743]
[1735674851528,8.18915743,194.07,194.0,8.18915743]
[1735674852823,8.18915743,194.08,194.01,8.18915743]
[1735674854223,8.18915743,194.08,194.02,8.18915743]
[1735674854608,8.18915743,194.09,194.02,8.18915743]
[1735674855331,8.18915743,194.08,194.02,8.18915743]
[1735674855832,9.82515743,194.12,194.05,8.18915743]
[1735674856006,8.18915743,194.1,194.03,8.18915743]
[1735674857424,8.18915743,194.08,194.01,8.18915743]
[1735674858107,8.18915743,194.07,194.0,8.18915743]
[1735674858303,8.18915743,194.06,193.99,8.18915743]
[1735674858721,6.5913,194.07,194.01,8.18915743]
[1735674860233,14.78045743,194.07,194.0,8.18915743]
[1735674860537,8.18915743,194.06,193.99,28.18915743]
[1735674860927,14.78045743,194.07,194.0,8.18915743]
[1735674861247,8.18915743,194.06,194.0,8.18915743]
[1735674862348,8.18915743,194.06,193.99,28.18915743]
[1735674863034,6.5913,194.07,194.01,8.18915743]
[1735674863337,6.5913,194.07,194.02,8.18915743]
[1735674865534,6.5913,194.07,194.01,8.18915743]
[1735674866521,8.18915743,194.06,193.99,21.07635743]
[1735674866726,14.78045743,194.07,194.0,8.18915743]
[1735674867318,8.18915743,194.06,193.99,21.07635743]
[1735674867519,8.18915743,194.06,193.99,8.18915743]
[1735674867722,8.18915743,194.06,193.99,28.18915743]
[1735674868721,1.5667,194.05,193.99,28.18915743]
[1735674868922,9.75585743,194.05,193.99,20.0]
[1735674869247,1.5667,194.05,193.99,28.18915743]
[1735674870139,1.5667,194.05,194.0,8.18915743]
[1735674870520,1.5667,194.05,193.99,28.18915743]
[1735674873767,1.5667,194.05,193.99,20.0]
[1735674873929,9.75585743,194.05,193.99,20.0]
[1735674874249,1.5667,194.05,193.99,20.0]
[1735674874651,9.75585743,194.05,193.99,20.0]
[1735674874836,8.18915743,194.03,193.95,8.18915743]
[1735674875142,8.18915743,194.02,193.95,8.18915743]
[1735674875852,8.18915743,194.01,193.94,8.18915743]
[1735674878534,8.18915743,194.01,193.95,1.81830214]
[1735674879038,8.18915743,194.01,193.94,8.18915743]
[1735674880243,23.776884,194.04,193.95,8.18915743]
[1735674880445,8.18915743,194.03,193.96,8.18915743]
[1735674880654,8.18915743,194.03,193.94,12.8899]
[1735674880655,8.18915743,194.04,193.97,8.18915743]
[1735674881144,8.18915743,194.03,193.96,8.18915743]
[1735674881522,31.96604143,194.04,193.97,10.00864067]
[1735674881726,8.18915743,194.03,193.97,1.81948324]
[1735674882139,8.18915743,194.03,193.96,8.18915743]
[1735674882333,23.776884,194.04,193.98,8.18915743]
[1735674882533,9.75585743,194.05,193.98,8.18915743]
[1735674883553,9.75585743,194.05,193.99,1.82227096]
[1735674884148,8.18915743,194.03,193.99,1.82227096]
[1735674884354,8.18915743,194.03,193.96,21.07825743]
[1735674885141,8.18915743,194.03,193.97,1.82314248]
[1735674885759,8.18915743,194.03,193.96,21.07825743]
[1735674886355,31.96604143,194.04,193.97,8.18915743]
[1735674886653,23.776884,194.04,193.97,8.18915743]
[1735674886956,31.96604143,194.04,193.97,8.18915743]
[1735674888345,8.18915743,194.03,193.96,21.07825743]
[1735674889241,8.18915743,194.03,193.97,1.82415409]
[1735674890060,8.18915743,194.01,193.93,12.891]
[1735674890240,8.18915743,194.01,193.94,8.18915743]
[1735674890437,8.18915743,194.01,193.94,10.01376097]
[1735674891152,8.18915743,194.01,193.95,1.82460354]
[1735674891860,8.18915743,194.01,193.96,1.82460354]
[1735674892765,8.18915743,194.01,193.94,8.18915743]
[1735674893538,8.18915743,194.01,193.95,1.82542442]
[1735674894372,8.18915743,194.01,193.96,1.82542442]
[1735674894550,8.18915743,194.02,193.96,1.82542442]
[1735674894949,8.18915743,194.02,193.94,8.18915743]
[1735674895555,8.18915743,194.02,193.95,1.82520732]
[1735674896159,8.18915743,194.02,193.96,1.82520732]
[1735674896963,8.18915743,194.02,193.94,8.18915743]
[1735674897458,8.18915743,194.02,193.95,1.82516623]
[1735674898058,8.18915743,194.02,193.96,1.82516623]
[1735674898654,8.18915743,194.02,193.94,8.18915743]
[1735674899167,8.18915743,194.02,193.95,1.82524263]
[1735674899755,8.18915743,194.02,193.96,1.82524263]
[1735674900476,8.18915743,194.01,193.94,8.18915743]
[1735674901350,8.18915743,194.01,193.95,1.82531809]
[1735674902168,8.18915743,194.01,193.96,1.82531809]
[1735674902972,8.18915743,194.01,193.94,8.18915743]
[1735674903571,8.18915743,194.01,193.95,1.82598692]
[1735674904375,8.18915743,194.01,193.96,1.82598692]
[1735674904850,8.18915743,194.01,193.97,1.82598692]
[1735674905963,8.18915743,194.01,193.94,8.18915743]
[1735674906579,8.18915743,194.01,193.95,1.82587666]
[1735674907272,8.18915743,194.01,193.96,1.82587666]
[1735674907887,8.18915743,194.01,193.97,1.82587666]
[1735674908767,8.18915743,194.01,193.93,21.01217728]
[1735674909283,8.18915743,194.01,193.94,1.8259003]
[1735674909883,8.18915743,194.01,193.95,1.8259003]
[1735674910887,8.18915743,194.0,193.96,1.8259003]